Cogmind - Beta 14 @@@ ROGUE MODE // 2025.03.06 @ 12:31:36 Player: mix Result: Destroyed by DAS Turret with DAS Cannon Performance ------------- Evolutions (0) 0 Regions Visited (3) 600 Robots Destroyed (21) 105 Value Destroyed (607) 607 Prototype IDs (23) 460 Alien Tech Used (0) 0 Bonus (300) 300 TOTAL SCORE: 2072 Bonus ------- Aligned with FarCom 300 Cogmind --------- Core Integrity 0/250 Matter 244/300 Energy 100/100 System Corruption 3% Temperature Cool (0) Movement Core (350) Ox6 Location -10/Exiles Parts ------- > --- POWER (1) -------- (None) > --- PROPULSION (2) --- (None) > --- UTILITY (2) ------ Large Storage Unit > --- WEAPON (2) ------- (None) > --- INVENTORY (15) --- Improved Heat Sink Hacking Suite Medium Laser Particle Cannon Particle Cannon YOLO Cannon Autogun Autogun Bore Cannon Grenade Launcher Peak State ------------ > --- POWER ------------ Ion Engine > --- PROPULSION ------- Light Treads Light Treads > --- UTILITY ---------- Large Storage Unit Light Armor Plating > --- WEAPON ----------- YOLO Cannon > --- INVENTORY -------- Improved Aluminum Leg Improved Aluminum Leg Improved Heat Sink Light Armor Plating Light Armor Plating Hacking Suite Beam Cannon Beam Cannon Particle Cannon Particle Cannon Autogun Bore Cannon Grenade Launcher [Rating: 27] Favorites ----------- Power Ion Engine Engine Ion Engine Propulsion Light Treads Treads Light Treads Leg Improved Aluminum Leg Utility Light Armor Plating Storage Large Storage Unit Protection Light Armor Plating Weapon Beam Cannon Energy Gun Small Laser Energy Cannon Beam Cannon Ballistic Cannon Bore Cannon Build | -11 -10 -10 -10 ------- Run | Yrd Mat Min Exi Slots Evolved . | . . . . Power . | . . . . Propulsion . | . . . . Utility . | . . . . Weapon . | . . . . Parts Attached 25 | 6 7 3 9 Power 3 | 1 1 1 . Engine 3 | 1 1 1 . Core . | . . . . Reactor . | . . . . Propulsion 7 | 2 1 1 3 Treads 5 | 2 1 1 1 Leg 2 | . . . 2 Wheel . | . . . . Hover . | . . . . Flight . | . . . . Utility 5 | 1 2 . 2 Device . | . . . . Storage 2 | 1 1 . . Processor . | . . . . Hackware . | . . . . Protection 3 | . 1 . 2 Artifact . | . . . . Weapon 10 | 2 3 1 4 Energy Gun 4 | 2 1 . 1 Energy Cannon 5 | . 2 . 3 Ballistic Gun . | . . . . Ballistic Cannon 1 | . . 1 . Launcher . | . . . . Special Weapon . | . . . . Impact Weapon . | . . . . Slashing Weapon . | . . . . Piercing Weapon . | . . . . Special Melee Weapon . | . . . . Unidentified Prototypes . | . . . . Parts Lost 12 | . 2 . 10 Power 2 | . 1 . 1 Propulsion 4 | . . . 4 Utility 3 | . . . 3 Weapon 3 | . 1 . 2 Highest Loss Streak 10 | . 1 . 10 To Critical Strikes 1 | . . . 1 Average Slot Usage (%) 94 | . 93 100 89 Engine 13 | . 13 14 13 Treads 27 | . 28 28 26 Storage 14 | . 14 14 14 Protection 11 | . 8 14 13 Energy Gun 4 | . 10 . . Energy Cannon 20 | . 17 27 13 Ballistic Cannon 1 | . . . 5 Peak Build Rating 27 | 6 9 13 27 Average Rating 10 | 4 7 9 20 On Entrance 7 | . 6 9 13 Naked Turns . | . . . . Heaviest Build 46 | 13 34 40 46 Greatest Support 40 | 40 40 40 40 Greatest Overweight (x) 2 | . . . 2 Average Overweight (x) . | . . . . Largest Inventory Capacity 15 | 8 15 15 15 Average Capacity 13 | 6 11 15 15 Most Carried 15 | 5 13 15 15 Average Carried 10 | . 6 14 14 Final Capacity 15 | 8 15 15 15 Final Carried 15 | . 13 15 11 Class Distribution -------------------- 100% | Mutant Dominant Class ---------------- Mutant | -10/Materials Mutant | -10/Mines Mutant | -10/Exiles Resources | -11 -10 -10 -10 ----------- Run | Yrd Mat Min Exi Matter Collected 350 | 260 70 20 . Remotely . | . . . . Salvage Created 832 | . 733 76 23 Parts 44 | . 40 4 . Haulers Intercepted 2 | . 2 . . Recyclers Shooed . | . . . . Parts Field Recycled . | . . . . Retrieved Matter . | . . . . Parts Self-Destructed . | . . . . Prevented . | . . . . Kills | -11 -10 -10 -10 ------- Run | Yrd Mat Min Exi Combat Hostiles Destroyed 18 | . 12 2 4 Guns 6 | . 6 . . Cannons 8 | . 5 2 1 AOE 4 | . 1 . 3 Classes Destroyed 6 | . 5 . 1 Worker 1 | . 1 . . Hauler 2 | . 2 . . Operator 1 | . 1 . . Watcher 3 | . 3 . . Grunt 14 | . 12 2 . Assembled 4 | . . . 4 Best Kill Streak 4 | . 2 1 4 Combat Bots Only 4 | . 2 1 4 Max Kills in Single Turn 4 | . 1 1 4 Gunslinging . | . . . . Exploded 3 | . 1 . 3 Melee . | . . . . Uniques/NPCs Destroyed . | . . . . Combat | -11 -10 -10 -10 -------- Run | Yrd Mat Min Exi Hostile Shots Fired 119 | . 56 12 51 Missed 29 | . 16 1 12 Damage Taken 1712 | . 567 164 981 Core 279 | . 69 18 192 Absorbed by Shields . | . . . . Core Remaining (%) 100 | 100 . . . Volleys Fired 73 | 1 59 8 5 Largest 2 | 2 2 2 2 Hottest 120 | 80 120 120 120 Shots Fired 140 | 2 114 15 9 Gun 76 | 2 74 . . Cannon 64 | . 40 15 9 Launcher . | . . . . Special . | . . . . Kinetic . | . . . . Thermal 125 | 1 100 15 9 Explosive . | . . . . Electromagnetic 15 | 1 14 . . Robot Hit Streak 9 | 1 8 9 1 Robot Miss Streak 4 | 1 4 2 4 Penetration Max . | . . . . Secondary Targets 1 | . 1 . . Max Gunslinging Chain 1 | . 1 . . Shots Hit Robots 83 | 1 68 11 3 Core Hits 36 | . 29 3 4 Critical Kills . | . . . . Critical Parts Destroyed . | . . . . Critical Strikes . | . . . . Melee Attacks . | . . . . Impact . | . . . . Slashing . | . . . . Piercing . | . . . . Sneak Attacks . | . . . . Combat Hostiles . | . . . . Follow-up Attacks . | . . . . Damage Inflicted 1647 | 12 983 192 460 Guns 526 | 12 514 . . Cannons 735 | . 404 192 139 Explosions 386 | . 65 . 321 Melee . | . . . . Ramming . | . . . . Kinetic . | . . . . Thermal 1524 | 12 860 192 460 Explosive . | . . . . Electromagnetic 123 | . 123 . . Impact . | . . . . Slashing . | . . . . Piercing . | . . . . Highest Corruption 3 | . 1 1 3 Average Corruption 1 | . 1 1 1 Corruption Purged . | . . . . Corruption Blocked . | . . . . Effects 14 | . 2 6 6 Message Errors 6 | . 1 3 2 Matter Fused 1 | . . . 1 Heat Flow Errors 4 | . 1 2 1 Energy Discharges 2 | . . 1 1 Misfires 1 | . . . 1 Overload Shots . | . . . . Overflow Damage 70 | . . . 70 Projectiles 55 | . . . 55 Explosions 15 | . . . 15 Melee . | . . . . Knockbacks . | . . . . Impact . | . . . . Kinetic . | . . . . Secondary . | . . . . Self-Inflicted Damage 39 | . . . 39 Shots 1 | . . . 1 Rammed . | . . . . Targets Rammed . | . . . . Kicked . | . . . . Crushed . | . . . . Highest Temperature 423 | 18 313 423 203 Average Temperature 95 | 12 78 173 78 Received Heat Transfer 414 | . 297 117 . Effects 4 | . 2 2 . Interference 4 | . 2 2 . Siege Activations . | . . . . Robots Corrupted . | . . . . Combat Hostiles . | . . . . Parts Fried . | . . . . Impact Corruptions . | . . . . Robots Melted . | . . . . Combat Hostiles . | . . . . Parts Melted 6 | . 4 2 . Heat Transferred 2787 | 25 1801 407 554 Parts Sabotaged . | . . . . Parts Stolen . | . . . . Parts Stripped . | . . . . Power Chain Reactions 1 | . 1 . . Alert | -11 -10 -10 -10 ------- Run | Yrd Mat Min Exi Peak Influence 221 | . 221 50 . Initial 48 | . . 48 . Average 69 | . 96 40 . Maximum Alert Level 1 | . 1 . . Low Security (%) 91 | 100 84 100 . Level 1 8 | . 15 . . Level 2 . | . . . . Level 3 . | . . . . Level 4 . | . . . . Level 5 . | . . . . High Security . | . . . . Max Security . | . . . . Squads Dispatched 3 | . 3 . . Investigation 1 | . 1 . . Extermination . | . . . . Reinforcement 2 | . 2 . . Assault . | . . . . Garrison . | . . . . Intercept . | . . . . Searches Triggered . | . . . . Construction Impeded . | . . . . Haulers Reinforced . | . . . . Active Scanning Responses . | . . . . Cargo Convoy Interrupts . | . . . . Stealth | -11 -10 -10 -10 --------- Run | Yrd Mat Min Exi Distress Signals 2 | . 2 . . Communications Jammed . | . . . . Distress Signals . | . . . . Times Spotted 34 | . 25 2 7 Peak Tracking Total 9 | . 4 2 9 Tactical Retreats 4 | . 3 . 1 Traps | -11 -10 -10 -10 ------- Run | Yrd Mat Min Exi Traps Triggered 3 | . 3 . . Indirectly . | . . . . Trap Hack Attempts . | . . . . Triggered . | . . . . Disarmed . | . . . . Reprogrammed . | . . . . Reused . | . . . . Traps Extracted . | . . . . Installed . | . . . . Triggered . | . . . . Machines | -11 -10 -10 -10 ---------- Run | Yrd Mat Min Exi Machines Disabled 4 | . 1 . 3 Max in Single Turn 2 | . 1 . 2 Machines Repaired . | . . . . Machines Dismantled . | . . . . Machines Sabotaged . | . . . . Overloaded Fab Kills . | . . . . Hacking | -11 -10 -10 -10 --------- Run | Yrd Mat Min Exi Machines Accessed 2 | . 1 . 1 Terminals 1 | . 1 . . Fabricators . | . . . . Repair Stations . | . . . . Recycling Units . | . . . . Scanalyzers . | . . . . Garrison Access . | . . . . Total Hacks 2 | . 1 . 1 Successful 2 | . 1 . 1 Failed . | . . . . Catastrophic . | . . . . Database Lockouts . | . . . . Manual 1 | . . . 1 Terminals 1 | . 1 . . Fabricators . | . . . . Repair Stations . | . . . . Recycling Units . | . . . . Scanalyzers . | . . . . Garrison Access . | . . . . Terminal Hacks 2 | . 1 . 1 Branch Access Points 1 | . 1 . . Derelict Proto ID Bank 1 | . . . 1 Fabricator Hacks . | . . . . Repair Station Hacks . | . . . . Recycling Unit Hacks . | . . . . Scanalyzer . | . . . . Garrison Access Hacks . | . . . . Unauthorized Hacks . | . . . . Terminals . | . . . . Fabricators . | . . . . Repair Stations . | . . . . Recycling Units . | . . . . Scanalyzers . | . . . . Garrison Access . | . . . . Data Cores Recovered . | . . . . Used . | . . . . Hacking Detections . | . . . . Full Trace Events . | . . . . Feedback Events . | . . . . Feedback Blocked . | . . . . Robot Schematics Acquired . | . . . . Robots Built . | . . . . Authchips . | . . . . Time . | . . . . Total Robot Build Rating . | . . . . Part Schematics Acquired . | . . . . Parts Built . | . . . . Authchips . | . . . . Time . | . . . . Total Part Build Rating . | . . . . Parts Repaired . | . . . . Time . | . . . . Parts Recycled . | . . . . Recycled Matter . | . . . . Retrieved Matter . | . . . . Retrieved Components . | . . . . Parts Scanalyzed . | . . . . Part Schematics Acquired . | . . . . Parts Damaged . | . . . . Bothacking | -11 -10 -10 -10 ------------ Run | Yrd Mat Min Exi Used RIF Installer . | . . . . Robots Hacked . | . . . . Non-combat . | . . . . Combat . | . . . . Robot Hacks Applied . | . . . . Relay Couplers Released . | . . . . Fabnet Peak Effective % . | . . . . Robots Rewired . | . . . . Allies Hacked . | . . . . Hacks Repelled . | . . . . Allies | -11 -10 -10 -10 -------- Run | Yrd Mat Min Exi Total Allies . | . . . . Largest Group . | . . . . Highest-Rated Group . | . . . . Highest-Rated Ally . | . . . . Total Orders . | . . . . Ally Attacks . | . . . . Total Damage . | . . . . Kills . | . . . . Allies Corrupted . | . . . . Allies Melted . | . . . . Intel | -11 -10 -10 -10 ------- Run | Yrd Mat Min Exi Robot Analysis Total . | . . . . Derelict Logs Recovered 1 | . . 1 . Drone Launches . | . . . . Drone Recoveries . | . . . . Exploration | -11 -10 -10 -10 ------------- Run | Yrd Mat Min Exi Turns Passed 2502 | 55 1075 870 502 Spaces Moved 1278 | 32 522 486 238 Core 9 | 9 . . . Treads 1259 | 23 522 486 228 Legs 10 | . . . 10 Wheels . | . . . . Hover . | . . . . Flight . | . . . . Fastest Speed 50 | 50 160 160 120 Average Speed 165 | 129 160 160 196 Slowest Speed 260 | 160 160 160 260 Overloaded Moves . | . . . . Propulsion Burnouts . | . . . . Robots Hopped . | . . . . Cave-ins Triggered . | . . . . Exploration Rate (%) 57 | 3 80 99 49 Regions Visited 3 Branch Regions 2 Pre-discovered Areas 2 | . . 2 . Known Exits Taken 1 | . 1 . . Unknown Exits Taken 2 | 1 . 1 . Scrap Searched 3 | . . 3 . Spaces Dug . | . . . . Terrain Destroyed 20 | . 4 . 16 Melee . | . . . . Projectile . | . . . . AOE 20 | . 4 . 16 Terrain Rammed . | . . . . Walls Destroyed . | . . . . Machines Disabled . | . . . . Actions | -11 -10 -10 -10 --------- Run | Yrd Mat Min Exi Total 1518 | 44 647 563 264 Wait 101 | . 38 63 . Move 1275 | 31 521 485 238 Hop . | . . . . Pick Up 32 | 6 19 3 4 Fast Attach 1 | . . . 1 Attach 16 | 6 3 . 7 Detach 2 | . . . 2 Swap 8 | . 4 3 1 Drop 10 | . 3 1 6 Fire 73 | 1 59 8 5 Melee . | . . . . Ram . | . . . . Kick . | . . . . Crush . | . . . . Escape Stasis . | . . . . Rewire . | . . . . Trap . | . . . . Miscellaneous . | . . . . Route ------- -11/Scrapyard -10/Materials (discovered 4 exits: [*Mat x3] / *Min) -10/Mines (discovered 4 exits: [*Mat x2] / *Exi / [*Sub]) -10/Exiles History --------- Turn | Location | Event 4 | -11/Scrapyard | Discovered new exit (range 15) 56 | -11/Scrapyard | Entered Materials 307 | -10/Materials | Build established: Mutant 467 | -10/Materials | Discovered new exit (range 10) 691 | -10/Materials | Discovered new exit (range 13) 988 | -10/Materials | Discovered new exit (range 9) 1055 | -10/Materials | Identified exit to Mines 1131 | -10/Materials | Entered Mines 1691 | -10/Mines | Learned location of Storage (-9) 1696 | -10/Mines | Discovered new exit (range 5) 1738 | -10/Mines | Discovered new exit (range 13) 1832 | -10/Mines | Discovered new exit (range 4) 1971 | -10/Mines | A weapon hastily lodged in a ceiling crevice suddenly fell to the ground 1995 | -10/Mines | Deemed a non-threat by the Exiles lab entrance 1995 | -10/Mines | Discovered new exit (range 5) 2001 | -10/Mines | Entered Exiles 2041 | -10/Exiles | Met 8R-AWN 2069 | -10/Exiles | Met EX-HEX 2115 | -10/Exiles | Met EX-BIN 2133 | -10/Exiles | Aligned with FarCom system 2134 | -10/Exiles | Given EX-Vault access code 2171 | -10/Exiles | Opened EX-Vault 2183 | -10/Exiles | Found YOLO Cannon 2249 | -10/Exiles | Warned to stay clear of 0b10 Research branches 2454 | -10/Exiles | Attacked by the Exiles 2488 | -10/Exiles | Core integrity fell below 50% 2502 | -10/Exiles | Core integrity fell below 20% 2503 | -10/Exiles | Destroyed by DAS Turret with DAS Cannon Last Messages --------------- Knocked back. Beam Cannon destroyed. Lgt. Armor Plating destroyed. HV Slug penetrates K0-3LH(z). HV Slug penetrates Machine. Penetrated by HV Slug. Ion Engine destroyed. Penetrated by HV Slug. Critical hit (Destroy). Lgt. Treads destroyed. Acquired YOLO Cannon. Penetrated by HV Slug. Imp. Aluminum Leg destroyed. Penetrated by HV Slug. Critical hit (Destroy). Beam Cannon destroyed. System corrupted by crushing effect (+1). Knocked back. Lgt. Armor Plating destroyed. Imp. Aluminum Leg destroyed. Map ----- +----------------------------------------------------+ | ????????????????????????????#""X" #??????? | | ????????????????????????????#" #??????? | | ????????????????????????????#" ## #??????? | | ????????????????????????????#""""""?# #?###### | | ?????????????????????????????#"###??# #?#""""" | | ????????????????????????????????????# #?#""""" | | ????????????????????????????????????# #?#""""" | | ???????????????????????????????????## ###"" "" | | ???????????????????????????????????#" "" | | ???????????????????????????????????#" " | | ???????????????????????????????????#" " | | ???????????????????????????????????#" " | | ??????????????????????##???????????#" " | | ?????????????????????? ???????????#" " | | ??????????????????????" ???????????## " | | ?????????????????????"" ????????????# " | | ?????????????????????"" ????????????#" "X" " | | ?????????????????????"" ???????????#" """ | | ????????????????????? ???????????#" """"""" | | ??????????????????????" ??????????##" ######## | | ??????????????????????# ?????????##"" #??????? | | ????????????????????#?# ###?######"" #??????? | | ??????????? """#####X# #"###""""""" ##?????? | | ?????????? """""" " " ##???## | | ?????????? "" "" " #####" | | ?????????? @%" " " | | ?????????? az % | | ???????????# % % % | | ???????????## | | ????????????## % | | ?????????????##" % | | ??????????????#""" " | | ??????????????#" ##;;;; % % % | | ???????????????" ""#### """"" % | | ???????????????"" """##???##### "" | | ???????????????" """##?????????? " | | ???????????????" ""#????????????#"" | | ??????????????? ??????????????"""" | | ????????????????? ?????????????? | | ??????????????????? ???????????? | | ?????????????????????? ????????????? | | ???????????????????????? ????????????? | | ???????????????????????????????????????? | | ???????????????????????????????????????? "" | | ????????????????????????????????????????##""" " " | | ????????????????????????????????????????????##""" | | ??????????????????????????????????????????????##"" | | ?????????????????????????????????????????????????# | | ?????????????????????????????????????????????????? | | ?????????????????????????????????????????????????? | +----------------------------------------------------+ Best States ------------- Heat Dissipation 25 Energy Generation 10 Energy Capacity 250 Matter Stores 300 Matter Capacity 300 Sight Range 16 Terrain Scan Density 10 Armor Coverage 150 Evasion (%) 43 Recoil Reduction 2 Item Schematics ----------------- None Robot Schematics ------------------ None Fabricated ------------ Nothing Alien Tech Used ----------------- None Achievements -------------- None Challenges ------------ None Game ------ Seed GhostDimensionalCoupler Manual? 0 Play Time 00:14:02 Cumulative 56.1 hours Start 2025.03.06 @ 12:19:52 End 2025.03.06 @ 12:31:36 Sessions 1 Manual Loads 0 Difficulty Rogue Special Mode None Game No. 77 Rogue 63 Adventurer 14 Explorer 0 Win Type - Total 0 Types 0/0/0/0/0/0/0/0/0 Lore% 20 Gallery% 40 Achievement% 37 Wizard Run 0 Options --------- Layout 1 ASCII 0 Keyboard 0 Movement Mouse Keybinds 0 Fullscreen 1 Font 24/Smallcaps Map View 50x35 Zoom Use 0% Tactical HUD 0 Map Filters NONE Filters NONE Steam 1 RUN: dfd7fae6-59fd-4327-bcea-0775a831c93b